bitfinex/quotes_ETHUSD_20250725
["timestamp","ask_amount","ask_price","bid_price","bid_amount"]
[1753403203111,1.0171,3683.0,3682.4,0.136]
[1753403203534,3.73227784,3683.0,3682.4,0.136]
[1753403204928,1.0171,3683.0,3682.4,0.136]
[1753403205134,3.73227784,3683.0,3682.4,0.136]
[1753403205304,0.136,3683.0,3682.4,0.136]
[1753403205641,0.7817,3683.2,3682.8,0.137]
[1753403205841,4.264,3683.1,3682.8,0.137]
[1753403206043,4.4,3683.3,3682.8,0.137]
[1753403206248,7.11496085,3683.3,3682.8,0.137]
[1753403206730,7.55536085,3683.3,3682.8,0.137]
[1753403207061,4.8404,3683.3,3682.8,0.137]
[1753403207338,7.55538108,3683.3,3682.8,0.137]
[1753403207642,4.8404,3683.3,3682.8,0.137]
[1753403208138,7.55536816,3683.3,3682.8,0.137]
[1753403208552,8.01866816,3683.3,3682.8,0.137]
[1753403208936,2.71504113,3683.2,3682.8,0.137]
[1753403209136,8.01866975,3683.3,3682.8,0.137]
[1753403209666,2.71517784,3683.0,3682.8,0.001]
[1753403209837,2.85117784,3683.0,3682.8,0.001]
[1753403210161,3.75487784,3683.0,3682.8,0.001]
[1753403210454,4.55697784,3683.0,3682.8,0.001]
[1753403210613,1.8418,3683.0,3682.8,0.001]
[1753403210816,0.7861,3683.3,3682.8,0.001]
[1753403211018,4.393,3683.2,3682.8,0.001]
[1753403211860,0.136,3683.2,3682.8,0.001]
[1753403212229,0.5764,3683.2,3682.8,0.001]
[1753403212425,0.136,3683.2,3682.8,0.001]
[1753403212734,1.84929023,3683.5,3683.1,2.7150961]
[1753403212735,1.38599023,3683.5,3683.1,2.7150961]
[1753403212947,1.38599023,3683.5,3683.0,1.0518]
[1753403212948,1.38599023,3683.5,3683.0,0.5838]
[1753403213134,0.4404,3683.4,3683.0,0.136]
[1753403213448,0.9037,3683.3,3682.9,0.005]
[1753403213648,0.02708942,3683.2,3682.9,0.005]
[1753403213844,0.4404,3683.2,3682.9,0.005]
[1753403214021,0.9037,3683.1,3682.9,0.005]
[1753403214228,5.1876,3683.3,3682.9,0.005]
[1753403214751,1.38599023,3683.5,3683.0,0.9585]
[1753403214952,1.38599023,3683.5,3683.4,2.71488298]
[1753403216848,1.38599023,3683.5,3683.3,2.71492731]
[1753403217087,0.95299883,3686.1,3685.3,2.71343738]
[1753403217272,0.7977,3687.7,3686.2,4.89182079]
[1753403217273,0.002,3686.3,3686.2,4.89182079]
[1753403217424,0.002,3686.3,3686.2,17.45614303]
[1753403217627,0.002,3686.3,3686.2,17.42901483]
[1753403217828,0.95299883,3687.6,3687.0,3.26223216]
[1753403218060,0.95299883,3687.6,3687.0,6.26223216]
[1753403218379,0.95299883,3687.6,3687.0,10.36123216]
[1753403218543,0.95299883,3687.6,3687.0,10.91123216]
[1753403218865,0.95299883,3687.4,3687.0,10.91123216]
[1753403219070,0.4404,3687.9,3687.0,10.91123216]
[1753403219267,0.4633,3687.7,3687.0,10.91123216]
[1753403219469,0.4633,3687.7,3687.0,10.90723216]
[1753403220833,0.7977,3688.2,3687.0,11.25103216]
[1753403221134,1.261,3688.2,3687.0,11.25103216]
[1753403221333,0.4424,3688.6,3687.0,11.25103216]
[1753403221334,0.002,3688.6,3688.3,2.71127619]
[1753403221580,0.002,3688.6,3688.3,2.73838895]
[1753403221743,0.002,3689.5,3689.1,2.71068824]
[1753403222445,0.9057,3689.2,3688.5,3.0]
[1753403222646,0.4633,3689.1,3688.7,3.0]
[1753403222864,0.9037,3689.0,3688.5,3.0]
[1753403223029,0.002,3689.2,3688.7,4.631]
[1753403223233,0.9037,3688.9,3688.7,4.631]
[1753403223453,0.4633,3688.8,3688.7,7.631]
[1753403223792,0.4633,3688.8,3688.7,3.0]
[1753403224083,0.4633,3688.8,3688.7,7.628]
[1753403225054,0.4633,3688.8,3688.5,0.1352]
[1753403225055,0.9037,3688.8,3688.5,0.1352]
[1753403225252,2.7112849,3688.3,3687.9,0.1352]
[1753403225454,3.64218527,3688.2,3687.6,4.619]
[1753403225650,1.06598942,3688.2,3687.7,0.1352]
[1753403225853,2.71156123,3688.0,3687.7,0.1352]
[1753403226053,2.71157571,3687.9,3687.7,0.1352]
[1753403226290,0.9037,3687.8,3687.6,0.1352]
[1753403226487,0.9037,3687.8,3687.5,4.616]
[1753403226788,0.9037,3687.7,3687.5,3.1352]
[1753403227116,0.4633,3687.6,3687.5,3.1352]
[1753403227298,0.7659,3687.5,3685.8,0.3438]
[1753403227459,0.136,3687.2,3686.6,0.136]
[1753403227660,0.9037,3687.1,3686.6,0.136]
[1753403227986,2.7123083,3686.9,3686.6,0.136]
[1753403228173,0.9037,3686.8,3686.3,0.136]
[1753403228374,3.61608748,3686.8,3686.3,0.136]
[1753403228580,2.71238748,3686.8,3686.3,4.748]
[1753403228776,0.9037,3686.7,3686.3,4.748]
[1753403228968,2.71253761,3686.6,3686.3,0.136]
[1753403229168,0.9037,3686.5,3686.2,4.744]
[1753403229377,0.9037,3686.5,3686.3,3.0]
[1753403229589,0.9037,3686.4,3686.2,0.136]
[1753403229791,0.9037,3686.4,3685.9,4.605]
[1753403229792,2.71287968,3686.2,3685.9,4.605]
[1753403229991,3.61640804,3686.4,3685.2,7.057]
[1753403229992,0.136,3686.4,3685.8,0.136]
[1753403230161,0.4633,3686.1,3685.9,4.605]
[1753403230364,3.15322618,3686.2,3686.0,3.0]
[1753403230783,0.4404,3686.1,3685.8,0.136]
[1753403230991,3.61672569,3686.0,3685.8,4.604]
[1753403231191,0.4633,3685.9,3685.8,4.604]
[1753403231376,0.4633,3685.9,3685.7,0.136]
[1753403231577,0.4633,3685.9,3685.7,3.136]
[1753403231789,0.4633,3685.9,3685.7,0.136]
[1753403232105,2.7128226,3686.2,3685.7,3.136]
[1753403232305,0.4633,3686.2,3685.7,3.136]
[1753403232466,0.002,3686.0,3685.7,3.136]
[1753403233003,0.002,3686.0,3685.7,4.732]
[1753403233385,0.4653,3686.0,3685.7,4.732]
[1753403233781,0.4653,3686.0,3685.7,0.136]
[1753403233979,0.4653,3686.0,3685.7,3.136]
[1753403234303,0.4653,3686.0,3685.7,5.84915607]
[1753403234799,0.002,3686.0,3685.8,2.71309479]
[1753403235365,0.002,3686.0,3685.9,2.71304159]
[1753403235581,0.002,3686.0,3685.9,2.84904159]
[1753403235795,0.002,3686.0,3685.9,5.84904159]
[1753403236902,0.002,3686.0,3685.9,7.721]
[1753403237082,0.002,3686.0,3685.9,10.43404159]
[1753403237485,0.002,3686.0,3685.9,7.721]
[1753403237873,0.002,3686.0,3685.9,10.43404159]
[1753403238278,0.002,3686.0,3685.9,3.136]
[1753403238483,0.002,3686.0,3685.9,7.716]
[1753403238790,0.002,3686.0,3685.9,10.42904159]
[1753403239424,0.002,3686.0,3685.9,5.84904159]
[1753403239719,0.002,3686.0,3685.9,10.42304159]
[1753403239878,0.002,3686.0,3685.9,5.84904159]
[1753403240183,0.002,3686.0,3685.9,7.569]
[1753403240513,0.4843,3686.0,3685.9,7.569]
[1753403241317,0.4843,3686.0,3685.9,3.0]
[1753403242206,0.9355,3686.0,3685.9,3.0]
[1753403242374,3.64846798,3686.0,3685.9,3.0]
[1753403242581,3.64846798,3686.0,3685.7,4.559]
[1753403242815,0.9335,3685.9,3685.7,4.559]
[1753403243187,0.9335,3685.8,3685.6,0.136]
[1753403243583,0.4512,3685.8,3685.6,3.136]
[1753403243893,0.4823,3685.7,3685.6,3.136]
[1753403244103,0.9335,3685.7,3685.6,0.136]
[1753403244309,0.9335,3685.7,3683.9,8.686]
[1753403244310,0.7783,3685.5,3685.0,0.136]
[1753403244483,0.7783,3685.5,3684.4,2.7140835]
[1753403244684,0.136,3685.1,3684.5,0.136]
[1753403244907,0.9335,3685.0,3684.5,0.136]
[1753403245111,2.71371547,3685.0,3684.5,0.136]
[1753403245295,0.9335,3684.9,3684.5,0.136]
[1753403245505,0.16308942,3685.1,3684.5,0.136]
[1753403245816,0.9335,3684.8,3684.5,0.136]
[1753403246031,0.4512,3684.8,3684.5,0.136]
[1753403246203,0.4823,3684.7,3684.5,3.136]
[1753403246411,0.4823,3684.6,3684.5,2.85006761]
[1753403247235,0.4512,3684.8,3684.6,2.71396978]
[1753403247528,0.9335,3684.8,3684.7,5.71392514]
[1753403247856,0.7783,3685.5,3684.9,2.71375025]
[1753403247857,0.4823,3685.3,3684.9,2.71375025]
[1753403247998,0.6183,3685.3,3685.0,2.7137022]
[1753403248352,0.6183,3685.3,3685.1,2.71362229]
[1753403248639,0.6183,3685.3,3685.0,2.7137042]
[1753403248848,0.6183,3685.3,3685.1,2.71363056]
[1753403249201,0.6183,3685.3,3685.2,2.71355693]
[1753403249402,1.2643,3686.0,3685.6,2.71324069]
[1753403249662,0.136,3685.7,3685.3,2.71347364]
[1753403250009,0.4823,3685.6,3685.4,2.71340287]
[1753403250347,0.4823,3685.6,3685.5,2.71333604]
[1753403250642,0.9335,3685.6,3685.3,0.136]
[1753403250794,2.87630226,3685.7,3685.2,0.136]
[1753403250997,2.71328769,3685.6,3685.2,0.136]
[1753403251235,0.136,3685.3,3684.8,5.84985001]
[1753403251438,0.9335,3685.2,3684.7,2.84990318]
[1753403251599,0.7823,3685.2,3684.7,2.84990318]
[1753403251801,0.96058942,3685.1,3684.7,0.136]
[1753403252031,0.96058942,3685.1,3684.5,5.71506084]
[1753403252339,0.9335,3685.0,3684.5,3.001]
[1753403252641,1.09658942,3684.9,3684.5,3.001]
[1753403252941,0.9335,3684.8,3684.5,3.001]
[1753403253124,0.4512,3684.7,3684.5,3.001]
[1753403253515,0.4823,3684.6,3684.5,3.001]
[1753403254042,0.4823,3684.6,3684.5,5.71507246]
[1753403254252,0.4823,3684.6,3684.5,3.001]
[1753403254448,0.9335,3684.6,3684.5,0.001]
[1753403254809,9.00378822,3684.6,3684.5,0.001]
[1753403255141,8.9766988,3684.6,3684.5,0.001]
[1753403256906,1.7387,3684.6,3684.5,0.001]
[1753403257112,0.136,3684.7,3684.5,2.71507246]
[1753403257342,4.653,3684.8,3684.5,0.001]
[1753403257737,5.1353,3684.8,3684.5,0.001]
[1753403258271,0.136,3684.8,3684.5,2.7150151]
[1753403258554,5.87606363,3685.0,3684.9,2.71377785]
[1753403259546,1.36106363,3685.0,3684.9,2.71377785]
[1753403259747,1.36106363,3685.0,3684.8,0.136]
[1753403260455,0.96058942,3684.9,3684.5,3.001]
[1753403260614,0.96058942,3684.9,3684.5,2.85104218]
[1753403260971,0.9335,3684.8,3684.5,5.85106357]
[1753403261125,0.4823,3684.7,3684.5,2.85105897]
[1753403261325,0.02708942,3684.7,3684.5,0.001]
[1753403261626,1.49706363,3685.0,3684.5,0.001]
[1753403261627,0.9335,3684.6,3684.5,0.001]
[1753403261824,1.0695,3684.6,3684.5,0.001]
[1753403262127,3.81058822,3684.6,3684.5,0.001]
[1753403263224,4.57898822,3684.6,3684.5,0.001]
[1753403266768,2.71478557,3683.6,3683.1,0.136]
[1753403266974,4.491,3683.5,3683.1,0.136]
[1753403267127,4.9427,3683.5,3683.1,0.136]
[1753403267864,0.47878942,3683.4,3682.9,0.005]
[1753403268042,1.08268942,3683.4,3682.9,0.005]
[1753403268247,3.63457343,3683.3,3682.9,0.005]
[1753403268642,0.9196,3683.2,3682.9,0.005]
[1753403269189,0.4517,3683.1,3682.9,2.72024012]
[1753403269389,0.136,3683.4,3683.0,2.71517784]
[1753403269842,4.484,3683.3,3683.1,2.71510412]
[1753403270046,4.484,3683.3,3683.0,2.7151605]
[1753403270565,4.484,3683.3,3682.9,2.72022854]
[1753403271088,4.9357,3683.3,3683.1,2.71508833]
[1753403271388,4.9357,3683.3,3683.0,2.71515816]
[1753403271938,4.9357,3683.3,3682.9,0.005]
[1753403271939,4.484,3683.3,3683.1,2.7150482]
[1753403272291,4.484,3683.3,3683.0,2.7151075]
[1753403272432,4.484,3683.3,3683.1,2.71509581]
[1753403272634,4.484,3683.3,3683.2,2.7150304]
[1753403272897,4.484,3683.3,3683.1,2.71509579]
[1753403273030,4.484,3683.3,3683.1,2.71509072]
[1753403273435,4.484,3683.3,3683.2,2.7150304]
[1753403274251,4.484,3683.3,3682.9,2.72024632]
[1753403274474,4.484,3683.3,3683.2,2.7150304]
[1753403276140,4.484,3683.3,3683.0,0.001]
[1753403276336,4.484,3683.3,3683.2,2.7150304]
[1753403278082,4.484,3683.3,3683.1,2.71508408]
[1753403278385,4.484,3683.3,3683.1,2.71509943]
[1753403278606,4.484,3683.3,3683.0,2.71616417]
[1753403279096,0.136,3683.4,3683.1,2.71508636]
[1753403279274,4.454,3683.2,3683.1,2.71508636]
[1753403279449,4.454,3683.2,3683.0,2.71616488]
[1753403279779,4.454,3683.2,3683.0,2.71615468]
[1753403280285,4.454,3683.2,3683.1,2.71510412]
[1753403280872,0.136,3683.4,3683.3,2.71495669]
[1753403281072,0.4517,3683.8,3683.5,2.7147808]
[1753403281286,0.4517,3684.2,3683.0,0.3448]
[1753403281577,0.136,3684.2,3684.1,2.7143037]
[1753403281878,4.446,3684.2,3684.0,2.71443757]
[1753403282097,4.446,3684.2,3683.9,2.71446627]
[1753403282243,4.446,3684.2,3684.0,2.71439453]
[1753403283149,4.446,3684.2,3683.8,2.85056898]
[1753403283150,4.446,3684.2,3683.8,0.136]
[1753403283356,0.136,3684.0,3683.4,0.136]
[1753403283548,0.94668942,3683.9,3683.4,2.85083521]
[1753403283745,5.3616,3683.8,3683.5,2.71480776]
[1753403283985,0.9196,3683.7,3683.4,2.85087124]
[1753403284298,4.442,3683.8,3683.4,0.136]
[1753403284469,4.442,3683.8,3683.5,2.71480928]
[1753403284657,4.442,3683.8,3683.5,2.71478409]
[1753403284858,5.3616,3683.8,3683.5,2.71478409]
[1753403285182,0.4517,3683.7,3683.5,2.71478409]
[1753403285359,4.442,3683.8,3683.5,2.71478409]
[1753403285760,0.9196,3683.7,3683.4,2.71488108]
[1753403285990,4.578,3683.8,3683.3,2.85091698]
[1753403286173,4.578,3683.8,3683.4,2.71485902]
[1753403286354,5.0297,3683.8,3683.4,2.71485902]
[1753403286560,4.578,3683.8,3683.3,0.136]
[1753403286785,0.136,3684.0,3683.5,0.136]
[1753403287088,4.434,3683.9,3683.8,2.71457695]
[1753403288023,0.136,3684.4,3683.7,0.136]
[1753403288214,4.433,3684.3,3684.1,2.71430212]
[1753403288423,0.136,3684.4,3684.3,2.71421979]
[1753403288712,5.58944493,3684.8,3684.7,2.71392514]
[1753403289012,1.15644493,3684.8,3684.7,2.84992514]
[1753403289162,1.15644493,3684.8,3684.7,0.136]
[1753403289617,1.15644493,3684.8,3684.7,2.84992514]
[1753403290919,4.428,3685.1,3685.0,2.7137042]
[1753403291065,0.136,3685.3,3684.7,0.136]
[1753403291261,0.9196,3685.6,3685.3,2.71342786]
[1753403291262,4.426,3685.4,3685.3,2.71342786]
[1753403291768,0.136,3685.7,3685.3,2.71342786]
[1753403291988,4.425,3685.6,3685.5,2.71333604]
[1753403292191,4.425,3685.6,3685.4,2.71340208]
[1753403292497,4.425,3685.6,3685.2,2.84953267]
[1753403292708,0.4517,3685.5,3685.2,2.84953267]
[1753403293270,0.4517,3685.5,3685.3,2.71346592]
[1753403293804,0.4517,3685.5,3685.3,2.71348329]
[1753403294007,0.4517,3685.5,3685.2,0.136]
[1753403294174,0.4517,3685.5,3685.2,2.84955506]
[1753403294502,4.555,3685.7,3685.3,2.71346384]
[1753403294802,4.555,3685.7,3684.8,4.7628]
[1753403294803,2.713416,3685.4,3684.8,3.0]
[1753403295107,0.94668942,3685.3,3684.9,0.136]
[1753403295404,0.9196,3685.2,3684.9,0.136]
[1753403295707,0.9196,3685.2,3684.9,2.84976731]
[1753403295906,0.9196,3685.2,3684.9,0.136]
[1753403296078,0.4517,3685.2,3684.9,0.136]
[1753403296283,0.4517,3685.2,3685.0,2.7137042]
[1753403296479,0.4517,3685.2,3684.9,0.136]
[1753403296665,0.482,3685.1,3684.9,3.136]
[1753403296869,0.482,3685.1,3684.5,3.0]
[1753403297105,0.136,3684.9,3684.5,3.0]
[1753403297404,0.618,3684.9,3684.5,3.0]
[1753403298277,0.136,3684.9,3684.5,5.71400039]
[1753403299387,2.71395376,3684.7,3684.4,3.0]
[1753403299705,0.9533,3684.6,3684.3,3.0]
[1753403299890,0.9533,3684.6,3684.2,3.136]
[1753403300070,0.9533,3684.5,3684.2,2.85024816]
[1753403300271,0.482,3684.4,3684.2,3.136]
[1753403300469,0.482,3684.3,3684.2,5.85027812]
[1753403301899,0.482,3684.3,3684.2,0.136]
[1753403302515,0.482,3684.3,3684.2,2.85029346]
[1753403303028,0.482,3684.3,3684.2,0.136]
[1753403303189,0.482,3684.3,3684.0,3.0]
[1753403303190,0.9533,3684.3,3684.0,3.0]
[1753403303384,0.4713,3684.3,3684.0,5.71442611]
[1753403303603,0.482,3684.2,3684.0,5.71442611]
[1753403303824,3.48065062,3684.7,3683.9,0.136]
[1753403303825,0.482,3684.8,3683.9,5.71447063]
[1753403303995,4.398,3684.7,3684.5,2.71405595]
[1753403304592,4.398,3684.7,3684.1,2.85031347]
[1753403304818,4.398,3684.7,3684.4,2.71409501]
[1753403305133,0.9533,3684.6,3684.1,2.85036012]
[1753403305427,0.482,3684.5,3684.2,2.71429346]
[1753403305631,4.398,3684.7,3684.5,2.71406063]
[1753403305934,4.88,3684.7,3684.1,0.136]
[1753403306438,1.2942,3685.0,3684.7,2.71392514]
[1753403306594,4.392,3684.8,3684.7,2.71392514]
[1753403307231,4.874,3684.8,3684.4,0.136]
[1753403307431,0.482,3684.7,3684.4,2.8501172]
[1753403307729,0.482,3684.6,3684.5,2.71402077]
[1753403308230,4.392,3684.8,3684.6,2.71398106]
[1753403309132,4.392,3684.8,3684.6,2.71397163]
[1753403309294,0.482,3684.7,3684.4,0.136]
[1753403309500,4.8633,3684.8,3684.4,2.85012433]
[1753403309715,0.482,3684.6,3684.4,2.85012433]
[1753403310121,0.482,3684.6,3684.5,2.71407246]
[1753403310321,4.392,3684.8,3684.6,2.71398527]
[1753403310610,0.002,3685.4,3684.5,3.0]
[1753403310940,4.383,3685.4,3684.7,0.136]
[1753403311236,4.383,3685.4,3685.0,2.71366784]
[1753403311442,0.482,3685.3,3684.9,0.136]
[1753403311613,0.9533,3685.3,3684.9,0.136]
[1753403311807,0.9533,3685.2,3685.0,3.0]
[1753403312009,0.9533,3685.2,3684.9,0.136]
[1753403312341,4.383,3685.4,3685.2,2.7135304]
[1753403312547,0.002,3685.4,3685.2,2.7135304]
[1753403312747,4.378,3685.3,3685.2,2.7135304]
[1753403313655,0.002,3685.4,3685.3,2.71348329]
[1753403314547,0.484,3685.4,3685.2,2.84949954]
[1753403314852,0.002,3685.4,3685.2,2.84953297]
[1753403315007,0.002,3685.4,3685.2,0.136]
[1753403315211,0.002,3685.4,3685.0,0.136]
[1753403315410,0.484,3685.4,3685.0,3.136]
[1753403315638,0.9533,3685.3,3685.0,0.136]
[1753403315840,0.482,3685.2,3685.1,2.71360976]
[1753403316044,0.002,3685.4,3685.3,2.71348329]
[1753403316943,0.002,3685.4,3685.3,2.74061812]
[1753403317147,0.002,3685.4,3685.3,5.84948329]
[1753403317374,0.002,3685.4,3685.3,6.19328329]
[1753403318575,0.002,3685.4,3685.3,6.74328329]
[1753403318905,1e-08,3685.4,3685.3,6.74328329]
[1753403319179,0.002,3685.9,3685.8,6.26311519]
[1753403319383,0.002,3685.9,3685.8,10.76511519]
[1753403319584,0.002,3685.9,3685.8,11.10891519]
[1753403322672,0.002,3686.2,3686.1,3.26289438]
[1753403322872,0.002,3686.4,3686.3,6.26274719]
[1753403323099,7.06958479,3687.9,3686.3,6.26274719]
[1753403323100,1.49223714,3688.1,3687.7,2.71165154]
[1753403323264,0.8301,3688.2,3687.9,2.71151373]
[1753403323602,0.1352,3688.3,3687.8,2.71164379]
[1753403323753,0.002,3688.4,3688.3,2.71127619]
[1753403323953,0.002,3688.4,3688.2,0.1352]
[1753403324154,0.482,3688.3,3688.2,0.1352]
[1753403324463,0.482,3688.3,3688.1,0.1352]
[1753403324464,0.9533,3688.3,3688.1,0.1352]
[1753403324785,0.482,3688.2,3687.9,3.0]
[1753403325508,0.482,3688.2,3687.9,2.71155195]
[1753403325798,0.482,3688.2,3687.8,3.0]
[1753403325986,0.482,3688.2,3687.8,5.71163856]
[1753403326502,0.002,3688.4,3687.8,3.0]
[1753403326962,0.002,3688.4,3687.8,4.353]
[1753403327160,0.4863,3688.3,3687.8,7.353]
[1753403327368,0.4863,3688.2,3687.9,3.0]
[1753403328426,0.9399,3688.1,3687.8,7.35]
[1753403328566,0.02908942,3688.4,3687.8,7.35]
[1753403328567,0.4863,3688.0,3687.8,7.35]
[1753403328773,0.4863,3687.9,3687.8,3.0]
[1753403328967,0.9399,3687.9,3687.4,4.348]
[1753403329203,0.9399,3687.8,3687.5,3.0]
[1753403329403,0.7908,3688.0,3687.5,3.0]
[1753403329604,0.4863,3687.9,3687.5,3.0]
[1753403329805,1.7307,3688.3,3687.5,3.0]
[1753403330306,2.71142816,3688.1,3687.5,3.0]
[1753403330508,0.4863,3688.0,3687.5,3.0]
[1753403330725,4.349,3688.4,3686.8,0.55]
[1753403330726,1.79448942,3687.9,3686.8,0.55]
[1753403330867,3.19794379,3687.8,3687.1,3.0]
[1753403331193,1.30818942,3687.9,3686.5,5.09595341]
[1753403331194,0.9399,3687.7,3686.5,5.09595341]
[1753403331407,0.9399,3687.6,3686.6,4.37612526]
[1753403331608,0.4863,3687.9,3687.6,2.71178604]
[1753403331906,0.4863,3687.9,3687.7,2.71170076]
[1753403332071,1.3138,3688.2,3687.7,2.71170076]
[1753403332270,0.002,3688.4,3687.5,3.0]
[1753403332488,0.002,3688.4,3687.5,3.02711864]
[1753403332678,0.4863,3688.3,3687.5,3.0]
[1753403332981,3.65118071,3688.3,3687.6,4.353]
[1753403333183,0.9399,3688.3,3687.6,4.353]
[1753403333396,0.9399,3688.3,3687.6,7.06474418]
[1753403334403,3.6511836,3688.3,3687.6,4.353]
[1753403334606,0.9399,3688.3,3687.6,7.06477687]
[1753403334807,0.9399,3688.3,3687.9,0.1352]
[1753403335107,0.9399,3688.2,3687.9,0.1352]
[1753403335469,0.4536,3688.2,3687.9,0.1352]
[1753403335674,0.4863,3688.1,3687.9,0.1352]
[1753403335873,2.84841939,3688.4,3687.9,0.1352]
[1753403335874,0.1372,3688.4,3687.9,0.1352]
[1753403336132,0.4863,3688.3,3687.9,2.84675182]
[1753403336311,0.4863,3688.3,3687.9,0.1352]
[1753403336707,0.002,3688.4,3687.9,0.1352]
[1753403337217,0.4883,3688.4,3687.9,2.84674303]
[1753403337411,0.4883,3688.4,3688.0,2.71149287]
[1753403337615,0.002,3688.4,3688.0,2.71149287]
[1753403337916,0.002,3688.4,3687.9,0.1352]
[1753403337917,0.002,3688.4,3687.9,2.84675904]
[1753403338493,0.4863,3688.3,3687.9,0.1352]
[1753403338693,0.4863,3688.2,3687.9,0.1352]
[1753403338894,0.4863,3688.1,3687.9,0.1352]
[1753403339099,0.002,3688.4,3687.9,0.1352]
[1753403339281,0.002,3688.4,3688.0,0.1352]
[1753403339482,0.002,3688.4,3688.2,0.1352]
[1753403340427,0.002,3688.4,3688.3,5.71127619]
[1753403340588,0.002,3688.4,3688.3,6.05507619]
[1753403341002,0.002,3688.4,3688.3,5.71127619]
[1753403341216,0.9419,3688.4,3688.3,3.0]
[1753403341491,2.71127619,3688.3,3686.9,0.3438]
[1753403341797,4.47715267,3688.2,3687.4,0.1352]
[1753403341995,0.1352,3688.0,3687.4,0.1352]
[1753403342239,0.9399,3687.9,3687.6,3.0]
[1753403342440,0.4536,3687.9,3687.6,3.0]
[1753403342644,0.4863,3687.8,3687.6,3.0]
[1753403342805,0.9399,3688.1,3687.6,3.0]
[1753403343005,3.16503536,3688.1,3687.6,0.1352]
[1753403343345,0.9611,3688.2,3687.6,0.1352]
[1753403343502,0.9611,3688.2,3687.7,2.71171733]
[1753403343702,0.4863,3688.1,3687.6,2.84698759]
[1753403343944,0.9399,3688.1,3687.7,2.71170527]
[1753403344242,0.9611,3688.2,3687.8,2.71162159]
[1753403344430,0.4863,3688.1,3687.7,2.7116971]
[1753403344634,0.4863,3688.1,3687.7,4.335]
[1753403344635,0.9399,3688.1,3687.7,4.335]
[1753403344939,0.4536,3688.0,3687.7,4.335]
[1753403345144,0.4863,3687.9,3687.7,4.335]
[1753403345342,0.9611,3688.2,3687.7,7.04670045]
[1753403345640,0.4863,3688.2,3688.0,2.71149674]
[1753403345831,0.1352,3688.3,3687.8,0.1352]
[1753403346031,0.002,3688.4,3688.3,2.71127619]
[1753403346744,0.002,3688.4,3688.2,2.84654845]
[1753403346939,0.002,3688.4,3688.2,0.1352]
[1753403347142,0.9399,3688.3,3688.2,0.1352]
[1753403347735,0.9399,3688.3,3688.2,2.8465497]
[1753403347936,0.9399,3688.3,3688.2,0.1352]
[1753403348670,0.9399,3688.3,3688.0,5.84668132]
[1753403348860,0.4536,3688.3,3688.0,3.1352]
[1753403349052,0.002,3688.4,3688.0,3.1352]
[1753403349249,0.9399,3688.2,3688.0,0.1352]
[1753403349453,0.4863,3688.2,3688.0,3.1352]
[1753403350567,0.4863,3688.2,3688.1,2.71142322]
[1753403350929,0.002,3688.4,3688.0,5.84668537]
[1753403351135,0.002,3688.4,3688.2,2.71127637]
[1753403351434,0.002,3688.4,3688.3,2.84647619]
[1753403352161,0.9419,3688.4,3688.3,4.321]
[1753403352358,0.4883,3688.4,3688.3,4.321]
[1753403352562,0.4883,3688.4,3688.2,0.1352]
[1753403352759,0.9399,3688.3,3688.2,0.1352]
[1753403352962,0.9399,3688.3,3688.1,4.323]
[1753403353162,0.9399,3688.2,3688.0,4.4582]
[1753403353468,0.4863,3688.1,3688.0,7.4582]
[1753403353968,0.9399,3688.1,3688.0,7.4582]
[1753403354171,0.9399,3688.1,3688.0,3.1352]
[1753403354172,0.4863,3688.1,3688.0,3.1352]
[1753403354376,1.2676,3688.1,3687.9,4.323]
[1753403354686,0.4536,3688.0,3687.9,4.323]
[1753403354894,0.9399,3688.0,3687.9,4.323]
[1753403355116,0.7813,3688.1,3687.9,4.323]
[1753403355317,0.4883,3688.4,3687.5,0.57711864]
[1753403355606,0.4515,3688.1,3688.0,0.1352]
[1753403355819,0.4515,3688.1,3688.0,4.4542]
[1753403356298,0.002,3688.4,3688.0,0.1352]
[1753403356510,0.4515,3688.1,3688.0,0.1352]
[1753403356792,0.4515,3688.1,3688.0,2.84669674]
[1753403356995,0.4515,3688.1,3688.0,4.4522]
[1753403358198,0.4515,3688.1,3688.0,7.16369674]
[1753403358572,0.4515,3688.1,3688.0,4.4522]
[1753403359058,0.4382,3688.3,3688.0,4.4522]
[1753403359261,0.4515,3688.1,3688.0,4.4522]
[1753403359660,0.4515,3688.1,3688.0,0.1352]
[1753403359882,0.4515,3688.1,3688.0,4.4472]
[1753403360085,0.8897,3688.1,3688.0,0.1352]
[1753403360360,0.8897,3688.1,3688.0,4.312]
[1753403360774,0.4515,3688.1,3688.0,4.312]
[1753403360972,0.1352,3688.3,3688.0,4.312]
[1753403360973,0.4515,3688.3,3688.0,4.312]
[1753403361212,0.002,3688.4,3688.3,2.71127619]
[1753403361402,0.002,3688.4,3688.3,7.02327619]
[1753403362814,0.002,3688.4,3688.3,4.312]
[1753403363405,0.002,3688.4,3688.3,7.02327619]
[1753403365721,0.4535,3688.4,3688.3,4.312]
[1753403365895,0.4535,3688.4,3688.3,7.02327619]
[1753403366099,0.002,3688.4,3688.3,7.02327619]
[1753403367119,0.4535,3688.4,3688.3,7.02327619]
[1753403367702,0.002,3688.4,3688.3,10.57327619]